bitfinex-derivatives/quotes_ETHF0:USTF0_20250503
["timestamp","ask_amount","ask_price","bid_price","bid_amount"]
[1746290353279,4.30166,1828.0,1827.8,1.09392]
[1746290353477,4.30166,1828.0,1827.9,1.6655]
[1746290353783,5.09455785,1828.0,1827.9,1.6655]
[1746290354285,5.09455785,1828.0,1827.9,5.3835]
[1746290354485,1.88672485,1828.0,1827.9,5.3835]
[1746290354787,1.55054596,1828.0,1827.9,5.3835]
[1746290355786,2.7125,1828.1,1827.9,6.47737]
[1746290355983,2.7125,1828.1,1828.0,4.8975]
[1746290356185,3.16912901,1828.1,1828.0,8.6155]
[1746290357891,3.1689675,1828.1,1828.0,8.6155]
[1746290358489,1.55026055,1828.1,1828.0,8.6155]
[1746290358690,1.55026055,1828.1,1828.0,9.4129]
[1746290359287,1.55026055,1828.1,1828.0,8.6155]
[1746290360888,1.88642252,1828.1,1828.0,3.718]
[1746290361293,3.47072252,1828.1,1828.0,3.718]
[1746290361493,3.4708644,1828.1,1828.0,3.718]
[1746290361689,8.4708644,1828.1,1828.0,3.718]
[1746290361993,1.09417,1827.4,1827.3,8.84690811]
[1746290362194,1.09416,1827.5,1827.3,3.3172511]
[1746290362394,0.45693993,1827.4,1827.3,3.3172511]
[1746290362696,1.09416,1827.5,1827.3,3.3172511]
[1746290362996,4.9075,1827.7,1827.3,3.3172511]
[1746290362997,1.55109672,1827.4,1827.3,3.3172511]
[1746290363193,1.55109672,1827.4,1827.3,7.0352511]
[1746290363493,1.88760867,1827.4,1827.3,3.8274511]
[1746290363690,6.88760867,1827.4,1827.3,3.8274511]
[1746290363886,8.55360867,1827.4,1827.3,3.8274511]
[1746290364090,3.55360867,1827.4,1827.3,3.8274511]
[1746290364289,4.40340867,1827.4,1827.3,0.1094511]
[1746290364887,3.94654471,1827.4,1827.3,0.1094511]
[1746290365091,4.40375638,1827.4,1827.3,0.1094511]
[1746290366792,4.40422591,1827.4,1827.3,0.1094511]
[1746290366992,9.40422591,1827.4,1827.3,0.1094511]
[1746290367195,4.40422591,1827.4,1827.3,0.1094511]
[1746290368492,4.40428384,1827.4,1827.3,0.1094511]
[1746290369100,4.40428384,1827.4,1827.3,3.8274511]
[1746290372100,1.88848384,1827.4,1827.3,3.8274511]
[1746290373001,1.88848384,1827.4,1827.3,4.6720511]
[1746290373796,1.09417,1827.4,1827.3,4.6720511]
[1746290374003,1.88870686,1827.4,1827.3,4.6720511]
[1746290375802,1.88865916,1827.4,1827.3,4.6720511]
[1746290376704,1.88865916,1827.4,1827.3,3.8274511]
[1746290376902,3.48565916,1827.4,1827.3,3.8274511]
[1746290377303,3.48565916,1827.4,1827.3,0.1094511]
[1746290377604,3.48558291,1827.4,1827.3,0.1094511]
[1746290378105,3.48558291,1827.4,1827.3,3.8274511]
[1746290379405,3.48547525,1827.4,1827.3,3.8274511]
[1746290381009,3.48535641,1827.4,1827.3,3.8274511]
[1746290381302,3.4853399,1827.4,1827.3,3.8274511]
[1746290382809,3.48530767,1827.4,1827.3,3.8274511]
[1746290384010,8.48530767,1827.4,1827.3,3.8274511]
[1746290385810,8.48530767,1827.4,1827.3,2.6452611]
[1746290386205,1.09441,1827.0,1826.9,1.7272]
[1746290386405,1.8888148,1827.0,1826.9,1.7272]
[1746290387207,1.8888148,1827.0,1826.9,5.4452]
[1746290388215,1.88916257,1827.0,1826.9,5.4452]
[1746290389720,1.89012168,1827.0,1826.9,5.4452]
[1746290390015,1.89012042,1827.0,1826.9,5.4452]
[1746290391912,1.89143987,1827.0,1826.9,5.4452]
[1746290393515,1.89169045,1827.0,1826.9,5.4452]
[1746290395323,1.89165108,1827.0,1826.9,5.4452]
[1746290397223,1.89159969,1827.0,1826.9,5.4452]
[1746290398922,1.89156259,1827.0,1826.9,5.4452]
[1746290402321,1.8911405,1827.0,1826.9,5.4452]
[1746290403929,1.89132168,1827.0,1826.9,5.4452]
[1746290405824,1.89166429,1827.0,1826.9,5.4452]
[1746290406620,3.47976429,1827.0,1826.9,5.4452]
[1746290407225,3.47976429,1827.0,1826.9,3.718]
[1746290407529,3.47964831,1827.0,1826.9,3.718]
[1746290408229,1.09447,1826.9,1826.8,1.641]
[1746290408429,6.69860831,1826.9,1826.8,1.641]
[1746290409123,6.69859215,1826.9,1826.8,5.359]
[1746290409322,6.69846515,1826.9,1826.8,5.359]
[1746290411126,6.69840795,1826.9,1826.8,5.359]
[1746290411833,12.81139056,1826.9,1826.8,5.359]
[1746290412830,16.36429285,1826.9,1826.8,3.718]
[1746290413030,1.09465,1826.6,1826.5,1.6071]
[1746290413226,1.09483,1826.3,1826.2,0.8442]
[1746290413524,4.64027885,1826.3,1826.2,0.8442]
[1746290413726,5.09901049,1826.3,1826.2,1.726]
[1746290413930,1.09495,1826.1,1826.0,0.8316]
[1746290414133,5.09913049,1826.1,1826.0,6.2756]
[1746290414525,5.09872999,1826.1,1826.0,6.2756]
[1746290414825,6.85032999,1826.1,1826.0,6.2756]
[1746290415131,5.09872999,1826.1,1826.0,5.444]
[1746290415725,1.89092999,1826.1,1826.0,5.444]
[1746290416031,1.89092999,1826.1,1826.0,10.444]
[1746290416228,0.33684513,1826.1,1826.0,10.444]
[1746290416426,0.79448054,1826.1,1826.0,10.444]
[1746290416626,0.79448054,1826.1,1826.0,5.444]
[1746290416827,1.88943054,1826.1,1826.0,5.444]
[1746290417027,0.45763541,1826.1,1826.0,13.6518]
[1746290417332,0.45763541,1826.1,1826.0,14.74681]
[1746290417535,1.09488,1826.3,1826.0,14.74681]
[1746290417733,6.50981934,1826.3,1826.2,3.2078]
[1746290418039,6.20936906,1826.3,1826.2,3.2078]
[1746290418223,7.30419906,1826.3,1826.2,4.8059]
[1746290419139,7.30419906,1826.3,1826.2,8.5239]
[1746290419439,5.41493934,1826.3,1826.2,14.61879]
[1746290419638,2.78403934,1826.3,1826.2,14.61879]
[1746290420430,3.87886934,1826.3,1826.2,13.5239]
[1746290420735,1.09483,1826.3,1826.2,13.5239]
[1746290420942,1.09481,1826.4,1826.2,14.61879]
[1746290421126,1.09482,1826.4,1826.3,4.3802]
[1746290421330,1.5524187,1826.4,1826.3,4.3802]
[1746290421733,1.09482,1826.4,1826.3,4.3802]
[1746290422137,1.09482,1826.4,1826.3,8.0982]
[1746290422434,1.09482,1826.4,1826.3,11.306]
[1746290422835,1.09482,1826.4,1826.3,13.0177]
[1746290424431,1.09482,1826.4,1826.3,9.4637]
[1746290424635,1.5525194,1826.4,1826.3,9.4637]
[1746290425033,1.5524985,1826.4,1826.3,9.4637]
[1746290425235,1.88941736,1826.4,1826.3,9.4637]
[1746290426242,0.79459736,1826.4,1826.3,9.4637]
[1746290427047,0.4576785,1826.4,1826.3,10.55853]
[1746290428135,0.4576785,1826.4,1826.3,9.4637]
[1746290428330,0.79474066,1826.4,1826.3,9.4637]
[1746290428540,1.88950373,1826.4,1826.3,9.4637]
[1746290428943,1.88950373,1826.4,1826.3,10.55853]
[1746290429143,1.88950373,1826.4,1826.3,9.4637]
[1746290430240,1.88958464,1826.4,1826.3,9.4637]
[1746290430641,6.88958464,1826.4,1826.3,6.9258]
[1746290430944,7.75478464,1826.4,1826.3,3.718]
[1746290431145,12.60477809,1826.4,1825.9,3.2078]
[1746290431436,1.0951,1825.9,1825.7,6.5847]
[1746290431639,5.47328,1826.6,1825.7,7.67989]
[1746290431640,0.45797065,1825.8,1825.7,7.67989]
[1746290431846,3.2078,1826.5,1825.8,2.73781]
[1746290432141,0.79507607,1826.4,1826.2,4.30269]
[1746290432344,1.09478,1826.4,1826.3,3.2973]
[1746290432642,1.89020908,1826.4,1826.3,3.2973]
[1746290433244,1.89020908,1826.4,1826.3,7.0153]
[1746290435544,1.89083405,1826.4,1826.3,7.0153]
[1746290436849,1.89083405,1826.4,1826.3,3.718]
[1746290437148,9.36803405,1826.4,1826.3,3.718]
[1746290437446,9.36805639,1826.4,1826.3,3.718]
[1746290438044,4.36805639,1826.4,1826.3,3.718]
[1746290440445,9.36805639,1826.4,1826.3,3.718]
[1746290440945,9.36804528,1826.4,1826.3,2.61322]
[1746290441140,1.09495,1826.1,1826.0,0.8684]
[1746290441349,1.89101528,1826.1,1826.0,0.8684]
[1746290441739,1.09507,1825.9,1825.8,4.0483]
[1746290441940,1.89113528,1825.9,1825.8,6.599]
[1746290442141,1.89113528,1825.9,1825.8,10.317]
[1746290442641,1.89096781,1825.9,1825.8,10.317]
[1746290443244,1.89096781,1825.9,1825.8,8.5697]
[1746290443444,1.89096781,1825.9,1825.8,4.5214]
[1746290443646,1.89096781,1825.9,1825.8,3.718]
[1746290443950,3.49286781,1825.9,1825.8,3.718]
[1746290444551,3.49250255,1825.9,1825.8,3.718]
[1746290444846,3.49248667,1825.9,1825.8,3.718]
[1746290445046,2.69697,1825.9,1825.8,3.718]
[1746290445249,3.49287435,1825.9,1825.8,3.718]
[1746290448148,3.49227687,1825.9,1825.8,3.718]
[1746290449949,3.49215643,1825.9,1825.8,3.718]
[1746290450650,3.49215643,1825.9,1825.8,2.31934]
[1746290450839,11.69995643,1825.9,1825.8,0.12292]
[1746290451037,1.09531,1825.5,1825.4,5.912]
[1746290451238,1.09531,1825.5,1825.3,3.2078]
[1746290451239,1.09537,1825.4,1825.3,3.2078]
[1746290451451,1.5531456,1825.4,1825.3,3.2078]
[1746290451645,1.6002,1825.6,1825.3,3.2078]
[1746290451850,1.55311857,1825.5,1825.3,3.2078]
[1746290452045,1.09524,1825.7,1825.4,1.09537]
[1746290452246,1.09526,1825.6,1825.3,1.09538]
[1746290452545,1.09526,1825.6,1825.5,3.2078]
[1746290452744,1.6002,1825.8,1825.5,3.2078]
[1746290452745,1.09523,1825.7,1825.5,3.2078]
[1746290453053,1.09525,1825.6,1825.5,3.2078]
[1746290453251,1.09523,1825.7,1825.5,4.3031]
[1746290453448,2.73759,1826.0,1825.5,4.3031]
[1746290453653,1.09513,1825.8,1825.7,3.2078]
[1746290453853,1.8899839,1825.8,1825.7,3.2078]
[1746290455159,1.89001728,1825.8,1825.7,3.2078]
[1746290458170,1.09525,1825.6,1825.5,9.504]
[1746290458466,1.55310988,1825.6,1825.5,6.7998]
[1746290458965,0.45785988,1825.6,1825.5,7.89511]
[1746290459163,1.09525,1825.6,1825.5,6.7998]
[1746290459567,1.55346859,1825.6,1825.5,6.7998]
[1746290460165,1.55346859,1825.6,1825.5,7.89511]
[1746290460364,1.55346859,1825.6,1825.5,6.7998]
[1746290460566,1.09525,1825.6,1825.5,6.7998]
[1746290461473,1.09525,1825.6,1825.5,7.89511]
[1746290461664,1.5535322,1825.6,1825.5,12.89511]
[1746290461865,1.09525,1825.6,1825.5,18.80711]
[1746290462065,1.55354462,1825.6,1825.5,13.80711]
[1746290462766,1.55354462,1825.6,1825.5,12.7118]
[1746290463065,1.89098994,1825.6,1825.5,12.7118]
[1746290463567,1.89098994,1825.6,1825.5,9.1198]
[1746290463870,1.89111964,1825.6,1825.5,9.1198]
[1746290464171,1.09531,1825.5,1825.4,0.8207]
[1746290464371,1.55373432,1825.5,1825.4,0.8207]
[1746290464669,1.89117964,1825.5,1825.4,2.5358]
[1746290465966,3.62177964,1825.5,1825.4,2.5358]
[1746290467171,3.16355367,1825.5,1825.4,2.5358]
[1746290467474,3.62230459,1825.5,1825.4,2.5358]
[1746290469176,3.62229979,1825.5,1825.4,2.5358]
[1746290469373,1.09537,1825.4,1825.3,3.2078]
[1746290469678,3.59855979,1825.4,1825.3,3.2078]
[1746290469876,2.50318979,1825.4,1825.3,3.2078]
[1746290470174,2.50318979,1825.4,1825.3,4.8087]
[1746290470375,3.59855979,1825.4,1825.3,4.8087]
[1746290470778,2.50342271,1825.4,1825.3,4.8087]
[1746290470974,0.79662271,1825.4,1825.3,10.90413]
[1746290471276,0.45898015,1825.4,1825.3,14.49013]
[1746290471471,0.79688686,1825.4,1825.3,9.49013]
[1746290471774,1.09519,1825.8,1825.6,1.09525]
[1746290471971,1.09519,1825.8,1825.7,4.0066]
[1746290472277,1.89224126,1825.8,1825.7,4.0066]
[1746290472473,1.89234737,1825.8,1825.7,4.0066]
[1746290472681,1.89234737,1825.8,1825.7,6.5044]
[1746290473677,0.79715737,1825.8,1825.7,7.59959]
[1746290474178,0.45918105,1825.8,1825.7,7.59959]
[1746290474572,0.45918105,1825.8,1825.7,6.5044]
[1746290474777,1.89244976,1825.8,1825.7,3.2966]
[1746290474975,3.64544976,1825.8,1825.7,3.2966]
[1746290476079,0.79731976,1825.8,1825.7,6.5044]
[1746290476373,1.89244976,1825.8,1825.7,6.5044]
[1746290476681,0.79731976,1825.8,1825.7,6.5044]
[1746290476874,0.79731976,1825.8,1825.7,7.59959]
[1746290477079,0.45918105,1825.8,1825.7,11.18559]
[1746290477280,3.61513268,1826.1,1825.7,12.4164]
[1746290477486,3.61513268,1826.1,1825.8,4.9475]
[1746290477487,0.79689092,1826.0,1825.8,4.9475]
[1746290477772,1.09501,1826.0,1825.9,1.7397]
[1746290477976,1.89187758,1826.0,1825.9,1.7397]
[1746290478178,3.48877758,1826.0,1825.9,1.7397]
[1746290479673,3.4885511,1826.0,1825.9,1.7397]
[1746290480968,1.09507,1825.9,1825.8,3.2078]
[1746290481174,3.6388111,1825.9,1825.8,3.2078]
[1746290481377,3.63873244,1825.9,1825.8,3.2078]
[1746290482780,4.49523244,1825.9,1825.8,3.2078]
[1746290483080,1.09515,1825.8,1825.6,11.21535]
[1746290483281,1.7471,1825.9,1825.7,2.75789]
[1746290483481,2.84217,1825.9,1825.8,1.6627]
[1746290483681,3.63854697,1825.9,1825.8,1.6627]
[1746290483983,2.54347697,1825.9,1825.8,2.75783]
[1746290484381,3.63854697,1825.9,1825.8,2.75783]
[1746290484584,3.63854697,1825.9,1825.8,1.6627]
[1746290484779,1.89144697,1825.9,1825.8,4.8705]
[1746290485082,1.89144791,1825.9,1825.8,4.8705]
[1746290486682,1.89144791,1825.9,1825.8,1.6627]
[1746290487085,1.09519,1825.7,1825.6,8.4574]
[1746290487283,1.55392124,1825.7,1825.6,8.4574]
[1746290487683,1.55392124,1825.7,1825.6,10.1851]
[1746290488087,1.09519,1825.7,1825.6,11.28035]
[1746290488279,1.09519,1825.7,1825.6,10.1851]
[1746290488491,1.55389098,1825.7,1825.6,10.1851]
[1746290488987,1.55389098,1825.7,1825.6,11.28035]
[1746290489181,1.55387686,1825.7,1825.6,11.28035]
[1746290490279,1.55387192,1825.7,1825.6,11.28035]
[1746290491390,1.09519,1825.7,1825.6,11.28035]
[1746290491886,1.09517,1825.8,1825.7,1.09519]
[1746290492189,1.09511,1825.9,1825.8,1.09512]
[1746290492482,1.891431,1825.9,1825.8,5.95902]
[1746290492784,0.79628694,1825.9,1825.8,5.95902]
[1746290493381,1.89135694,1825.9,1825.8,5.95902]
[1746290493580,0.79628694,1825.9,1825.8,5.95902]
[1746290493781,0.45869532,1825.9,1825.8,5.95902]
[1746290494492,0.79630672,1825.9,1825.8,5.95902]
[1746290494688,0.79630672,1825.9,1825.8,2.75122]
[1746290494889,0.45869532,1825.9,1825.8,5.95902]
[1746290495389,1.55376532,1825.9,1825.8,5.95902]
[1746290495585,1.89135413,1825.9,1825.8,5.95902]
[1746290495881,0.79628413,1825.9,1825.8,5.95902]
[1746290496082,0.45869532,1825.9,1825.8,5.95902]
[1746290497088,1.09491,1826.2,1825.8,11.87102]
[1746290497285,1.09491,1826.2,1826.1,4.30275]
[1746290497589,0.45879379,1826.2,1826.1,4.30275]
[1746290499095,4.70999268,1826.3,1826.2,1.09489]
[1746290499290,5.5065331,1826.3,1826.2,4.45859]
[1746290499491,5.5065331,1826.3,1826.2,8.04359]
[1746290500196,1.89140042,1826.3,1826.2,8.04359]
[1746290500589,0.79654042,1826.3,1826.2,8.04359]
[1746290500785,0.79660082,1826.3,1826.2,8.04359]
[1746290500995,0.79669409,1826.3,1826.2,8.04359]
[1746290501792,0.79669409,1826.3,1826.1,3.2078]
[1746290501998,1.8915422,1826.2,1826.1,3.2078]
[1746290502196,0.7966522,1826.2,1826.1,5.92005]
[1746290502698,2.52550901,1826.2,1826.1,5.92005]
[1746290506202,2.52549921,1826.2,1826.1,5.92005]
[1746290506394,3.62038921,1826.2,1826.1,5.92005]
[1746290508598,3.62038921,1826.2,1826.1,4.8251]
[1746290509901,0.79655895,1826.2,1826.1,5.92005]
[1746290510092,0.4589027,1826.2,1826.1,5.92005]
[1746290510503,1.5938,1826.5,1826.4,1.09477]
[1746290510688,0.79635442,1826.5,1826.4,1.09477]
[1746290510998,1.09471,1826.5,1826.4,1.09477]
[1746290511201,1.89112302,1826.5,1826.4,4.42907]
[1746290511691,1.89107295,1826.5,1826.4,4.42907]
[1746290512701,0.79636295,1826.5,1826.4,4.42907]
[1746290513402,0.79600623,1826.5,1826.4,4.42907]
[1746290513801,1.89071623,1826.5,1826.4,4.42907]
[1746290514495,1.89065056,1826.5,1826.4,4.42907]
[1746290515301,1.89054171,1826.5,1826.4,4.42907]
[1746290515503,0.79583171,1826.5,1826.4,4.42907]
[1746290516899,2.6885,1826.6,1826.4,4.42907]
[1746290517099,0.45835873,1826.5,1826.4,10.34107]
[1746290517310,2.72615,1826.8,1826.4,11.89437]
[1746290517498,0.79580383,1826.7,1826.6,4.30245]
[1746290517802,0.79580383,1826.7,1826.6,7.88745]
[1746290518498,1.89039383,1826.7,1826.6,7.88745]
[1746290518697,3.48815195,1826.7,1826.6,7.88745]
[1746290519105,2.39356195,1826.7,1826.6,7.88745]
[1746290519898,3.48815195,1826.7,1826.6,6.7928]
[1746290520504,0.79576195,1826.7,1826.6,7.88745]
[1746290520701,0.45834026,1826.7,1826.6,7.88745]
[1746290521305,1.55293026,1826.7,1826.6,7.88745]
[1746290521511,1.89027375,1826.7,1826.6,7.88745]
[1746290521803,1.89027152,1826.7,1826.6,7.88745]
[1746290522110,0.45834026,1826.7,1826.6,7.88745]
[1746290522295,0.45820653,1826.7,1826.6,7.88745]
[1746290522499,2.52504376,1826.7,1826.6,7.88745]
[1746290522808,3.61963376,1826.7,1826.6,7.88745]
[1746290523407,3.28230533,1826.7,1826.6,7.88745]
[1746290523707,3.61965962,1826.7,1826.6,7.88745]
[1746290525208,3.61973473,1826.7,1826.6,6.7928]
[1746290525509,1.09465,1826.6,1826.5,3.585]
[1746290525708,1.09471,1826.5,1826.4,9.1198]
[1746290526007,1.09471,1826.5,1826.4,3.2078]
[1746290526008,1.89035473,1826.5,1826.4,3.2078]
[1746290526207,3.1078639,1826.5,1826.4,3.2078]
[1746290526406,3.56617736,1826.5,1826.4,3.2078]
[1746290527003,3.56634593,1826.5,1826.4,3.2078]
[1746290527204,1.09483,1826.3,1826.2,3.2078]
[1746290527405,1.89066593,1826.3,1826.2,3.2078]
[1746290528407,1.09494,1826.2,1826.0,20.01016624]
[1746290528709,0.7866923,1826.1,1826.0,21.97067624]
[1746290529009,0.78665666,1826.1,1826.0,21.97067624]
[1746290529208,0.44926343,1826.1,1826.0,21.97067624]
[1746290529511,0.78663756,1826.1,1826.0,20.87566624]
[1746290529708,0.78663756,1826.1,1826.0,21.97067624]
[1746290529908,1.88158756,1826.1,1826.0,20.87566624]
[1746290530112,3.57296104,1826.1,1826.0,14.96366624]
[1746290530406,3.57278813,1826.1,1826.0,14.96366624]
[1746290530613,3.57278813,1826.1,1826.0,7.6583]
[1746290531117,3.57278813,1826.1,1826.0,3.2078]
[1746290532212,3.57234858,1826.1,1826.0,3.2078]
[1746290533912,3.57212723,1826.1,1826.0,3.2078]
[1746290534211,2.73754,1826.0,1825.5,3.2078]
[1746290534411,1.09531,1825.5,1825.4,9.73806624]
[1746290534712,1.88108723,1825.5,1825.4,9.73806624]
[1746290534912,1.88108723,1825.5,1825.4,2.4327]
[1746290535101,1.88108723,1825.5,1825.4,0.8267]
[1746290535305,3.59788723,1825.5,1825.4,0.8267]
[1746290535811,3.59682453,1825.5,1825.4,0.8267]
[1746290536115,1.09537,1825.4,1825.3,7.30536624]
[1746290536411,2.82487,1825.4,1825.3,7.30536624]
[1746290536612,3.27267716,1825.4,1825.3,7.30536624]
[1746290536812,3.27267716,1825.4,1825.3,8.91656624]
[1746290537114,1.09535,1825.5,1825.3,8.91656624]
[1746290537314,1.09535,1825.5,1825.4,2.4767]
[1746290542012,1.7295,1825.6,1825.4,2.4767]
[1746290542218,1.09528,1825.6,1825.5,1.613]
[1746290544825,1.09524,1825.7,1825.5,6.27731]
[1746290545022,1.09524,1825.7,1825.6,3.2078]
[1746290545328,1.09524,1825.7,1825.6,5.6956]
[1746290547526,1.09524,1825.7,1825.6,6.79085]
[1746290547928,1.09517,1825.8,1825.6,6.79085]
[1746290548128,1.09517,1825.8,1825.7,2.5098]
[1746290548428,1.7211,1826.0,1825.7,2.5098]
[1746290548631,1.7211,1825.9,1825.7,2.5098]
[1746290549431,1.09513,1825.8,1825.7,2.5098]
[1746290551224,1.09513,1825.8,1825.7,3.60499]
[1746290551424,1.7211,1826.0,1825.7,3.60499]
[1746290551623,1.09513,1825.9,1825.8,1.6078]
[1746290554130,1.54327459,1825.9,1825.8,1.6078]
[1746290555030,1.54327459,1825.9,1825.8,5.1768]
[1746290555230,0.44845105,1825.9,1825.8,6.27191]
[1746290555438,1.54352105,1825.9,1825.8,6.27191]
[1746290555724,1.54352105,1825.9,1825.8,5.1768]
[1746290556431,1.88046735,1825.9,1825.8,5.1768]
[1746290556732,1.09496,1826.1,1825.8,8.3846]
[1746290556930,0.78560148,1826.0,1825.9,2.5069]
[1746290557131,0.78573336,1826.0,1825.9,2.5069]
[1746290557425,0.7858868,1826.0,1825.9,2.5069]
[1746290557631,1.8808968,1826.0,1825.9,2.5069]
[1746290557829,1.88090404,1826.0,1825.9,2.5069]
[1746290558732,1.88113152,1826.0,1825.9,2.5069]
[1746290559235,3.57103152,1826.0,1825.9,2.5069]
[1746290560535,3.57110086,1826.0,1825.9,2.5069]
[1746290561421,3.57110086,1826.0,1825.8,3.2078]
[1746290561422,1.09507,1825.9,1825.8,3.2078]
[1746290561627,3.58536086,1825.9,1825.8,3.2078]
[1746290562134,7.49029086,1825.9,1825.6,5.912]
[1746290562327,1.09519,1825.7,1825.6,5.912]
[1746290562528,1.88138086,1825.7,1825.6,5.912]
[1746290562728,3.58548086,1825.7,1825.6,5.912]
[1746290563931,3.5853597,1825.7,1825.6,5.912]
[1746290564332,3.5853597,1825.7,1825.6,7.5786]
[1746290564531,3.5853597,1825.7,1825.6,1.6666]
[1746290565235,0.7860697,1825.7,1825.6,2.76185]
[1746290565436,0.44895959,1825.7,1825.6,2.76185]
[1746290565732,1.09513,1825.8,1825.6,2.76185]
[1746290566031,1.09513,1825.8,1825.7,5.7107]
[1746290566232,1.88128239,1825.8,1825.7,5.7107]
[1746290567336,0.78615239,1825.8,1825.7,6.80589]
[1746290567536,1.88128239,1825.8,1825.7,5.7107]
[1746290569244,1.8815554,1825.8,1825.7,5.7107]
[1746290570133,1.09513,1825.8,1825.7,5.7107]
[1746290570439,1.88167134,1825.8,1825.7,5.7107]
[1746290570637,1.88166924,1825.8,1825.7,5.7107]
[1746290570831,1.88167009,1825.8,1825.7,5.7107]
[1746290571438,1.88167009,1825.8,1825.7,2.5029]
[1746290571645,1.88177766,1825.8,1825.7,2.5029]
[1746290572032,1.88177766,1825.8,1825.7,3.59809]
[1746290572439,0.78664766,1825.8,1825.7,3.59809]
[1746290573344,0.78686537,1825.8,1825.7,3.59809]
[1746290574142,1.095,1826.1,1826.0,1.09501]
[1746290574339,1.88213826,1826.1,1826.0,1.09501]
[1746290574940,1.88213826,1826.1,1826.0,2.73831]
[1746290575141,1.88215483,1826.1,1826.0,3.53061]
[1746290576944,1.88203195,1826.1,1826.0,3.53061]
[1746290577544,0.78703195,1826.1,1826.0,3.53061]
[1746290577752,1.88198195,1826.1,1826.0,7.09561]
[1746290578044,3.60208195,1826.1,1826.0,7.09561]
[1746290578753,3.60182595,1826.1,1826.0,7.09561]
[1746290579043,2.50687595,1826.1,1826.0,7.09561]
[1746290579640,0.78677595,1826.1,1826.0,7.09561]
[1746290580450,5.27423268,1826.5,1826.2,1.09484]
[1746290580750,1.09489,1826.2,1826.1,6.71861]
[1746290580942,1.88152719,1826.2,1826.1,5.10551]
[1746290581147,0.78663719,1826.2,1826.1,5.10551]
[1746290581750,1.88151092,1826.2,1826.1,5.10551]
[1746290581938,2.48762092,1826.2,1826.1,5.10551]
[1746290582347,2.15024026,1826.2,1826.1,5.10551]
[1746290582948,2.4874723,1826.2,1826.1,5.10551]
[1746290583249,0.44924026,1826.2,1826.1,5.10551]
[1746290583649,2.79581,1826.4,1826.3,1.09483]
[1746290583842,3.58196392,1826.4,1826.3,1.09483]
[1746290584251,1.09486,1826.3,1826.2,1.09486]
[1746290584552,1.09489,1826.2,1826.1,5.10551]
[1746290584852,0.78603332,1826.2,1826.1,5.10551]
[1746290585048,2.75988,1826.3,1826.2,1.09489]
[1746290585349,3.54578575,1826.3,1826.2,1.09489]
[1746290586852,3.54568788,1826.3,1826.2,1.09489]
[1746290588551,2.45080788,1826.3,1826.2,1.09489]
[1746290588853,0.78580788,1826.3,1826.2,1.09489]
[1746290589057,0.44873519,1826.3,1826.2,1.09489]
[1746290590258,1.54356519,1826.3,1826.2,1.09489]
[1746290590453,1.54340918,1826.3,1826.2,1.09489]
[1746290592260,1.88029503,1826.3,1826.2,1.09489]
[1746290592557,1.54346469,1826.3,1826.2,1.09489]
[1746290592754,1.54346469,1826.3,1826.2,1.93739]
[1746290592956,0.44858469,1826.3,1826.2,1.93739]
[1746290593156,1.09478,1826.4,1826.3,1.09483]
[1746290593358,1.09483,1826.3,1826.2,1.93737]
[1746290593655,1.54346769,1826.3,1826.2,1.93737]
[1746290593855,1.54346769,1826.3,1826.2,1.93739]
[1746290594154,1.88048757,1826.3,1826.2,1.93739]
[1746290594352,1.88048757,1826.3,1826.2,3.57289]
[1746290594851,1.54346769,1826.3,1826.2,3.57289]
[1746290595155,1.88055617,1826.3,1826.2,3.57289]
[1746290597157,0.78572617,1826.3,1826.2,3.57289]
[1746290597355,0.44863769,1826.3,1826.2,3.57289]
[1746290597854,1.54346769,1826.3,1826.2,3.57289]
[1746290598155,1.88064469,1826.3,1826.2,3.57289]
[1746290598759,1.88064469,1826.3,1826.2,6.78069]
[1746290599357,1.88144326,1826.3,1826.2,6.78069]
[1746290599652,0.78661326,1826.3,1826.2,6.78069]
[1746290599857,0.7866112,1826.3,1826.2,6.78069]
[1746290600156,1.88141875,1826.3,1826.2,6.78069]
[1746290600344,1.88140824,1826.3,1826.2,6.78069]
[1746290600551,1.88140119,1826.3,1826.2,6.78069]
[1746290600749,1.88139845,1826.3,1826.2,6.78069]
[1746290601050,3.60673195,1826.3,1826.2,6.78069]
[1746290602558,3.60673195,1826.3,1826.2,3.57289]
[1746290602755,3.60673195,1826.3,1826.2,6.78069]
[1746290604654,3.60740806,1826.3,1826.2,6.78069]
[1746290604958,3.60740806,1826.3,1826.2,5.6858]
[1746290605656,3.60740806,1826.3,1826.2,6.78069]
[1746290606159,3.60740806,1826.3,1826.2,5.6858]
[1746290606354,3.60763564,1826.3,1826.2,5.6858]
[1746290606957,3.60763564,1826.3,1826.1,0.8028]
[1746290606958,1.09489,1826.2,1826.1,0.8028]
[1746290607158,3.48619564,1826.2,1826.1,0.8028]
[1746290607458,3.48611732,1826.2,1826.1,0.8028]
[1746290608255,3.48609961,1826.2,1826.1,0.8028]
[1746290610050,3.48606983,1826.2,1826.1,0.8028]
[1746290610247,3.48606983,1826.2,1826.1,2.4656]
[1746290611760,3.48603652,1826.2,1826.1,2.4656]
[1746290613565,3.48590022,1826.2,1826.1,2.4656]
[1746290616765,0.78741022,1826.2,1826.1,3.56055]
[1746290617168,1.88217105,1826.2,1826.1,3.56055]
[1746290617663,1.88217105,1826.2,1826.1,2.4656]
[1746290618967,1.88208448,1826.2,1826.1,2.4656]
[1746290620668,1.88212013,1826.2,1826.1,2.4656]
[1746290621359,1.88212013,1826.2,1826.1,3.56055]
[1746290623467,0.78723013,1826.2,1826.1,3.56055]
[1746290623664,0.44958899,1826.2,1826.1,3.56055]
[1746290623859,0.78730403,1826.2,1826.1,3.56055]
[1746290624260,0.44968036,1826.2,1826.1,3.56055]
[1746290624967,1.0948,1826.4,1826.3,1.09483]
[1746290625168,1.88223351,1826.4,1826.3,4.64183]
[1746290625569,1.88223351,1826.4,1826.3,7.22503]
[1746290625965,1.88219217,1826.4,1826.3,7.22503]
[1746290626974,0.4496758,1826.4,1826.3,13.13703]
[1746290627169,4.70981268,1826.6,1826.5,1.09471]
[1746290627368,5.49702426,1826.6,1826.5,1.09471]
[1746290627772,5.49702426,1826.6,1826.5,2.70491]